[Event "9th HDBank Open 2019"]
[Site "Ho Chi Minh City"]
[Date "2019.03.09"]
[Round "4.21"]
[White "Chen, Qi B"]
[Black "Miciano, John Marvin"]
[Result "1/2-1/2"]
[ECO "C42"]
[WhiteElo "2443"]
[BlackElo "2317"]
[Annotator "ChessBase"]
[PlyCount "69"]
[EventDate "2019.03.07"]
[EventType "swiss"]
[EventCountry "VIE"]
[SourceTitle "playchess.com"]
[Source "ChessBase"]
[SourceQuality "1"]
[TimeControl "5400+30"]

1. e4 {[%emt 0:08:01]} e5 {[%emt 0:00:23]} 2. Nf3 {[%emt 0:00:27]} Nf6 {[%emt 0:00:19]} 3. Nxe5 {[%emt 0:01:17]} d6 {[%emt 0:00:15]} 4. Nf3 {[%emt 0:00:41]} Nxe4 {[%emt 0:00:16]} 5. d4 {[%emt 0:00:07]} d5 {[%emt 0:00:17]} 6. Bd3 {[%emt 0:00:07]} Bd6 {[%emt 0:00:14]} 7. O-O {[%emt 0:03:04]} O-O {[%emt 0:01:35]} 8. c4 {[%emt 0:04:33]} c6 {[%emt 0:00:38]} 9. Nc3 {[%emt 0:00:07]} Nxc3 {[%emt 0:00:32]} 10. bxc3 {[%emt 0:00:03]} dxc4 {[%emt 0:00:57]} 11. Bxc4 {[%emt 0:00:03]} Bf5 {[%emt 0:00:19]} 12. Ne5 {[%emt 0:02:18]} Bxe5 {[%emt 0:01:57]} 13. dxe5 {[%emt 0:00:05]} Qa5 {[%emt 0:01:02]} 14. Qf3 {[%emt 0:09:15]} Be6 {[%emt 0:00:36]} 15. Bd3 Qxe5 {[%emt 0:14:16]} 16. Bf4 {[%emt 0:08:40]} Qf6 {[%emt 0:03:39]} 17. Qe4 {[%emt 0:11:12]} Qh4 {[%emt 0:02:42]} 18. Rfb1 {[%emt 0:08:18]} Nd7 {[%emt 0:03:53]} 19. Bd6 {[%emt 0:04:55]} Qxe4 {[%emt 0:01:17]} 20. Bxe4 {[%emt 0:00:04]} Rfd8 {[%emt 0:00:35]} 21. Bc7 {[%emt 0:06:42]} Rdc8 {[%emt 0:00:08]} 22. Rxb7 {[%emt 0:00:38]} Nc5 {[%emt 0:00:07]} 23. Bxc6 {[%emt 0:00:05]} Nxb7 {[%emt 0:00:05]} 24. Bxb7 {[%emt 0:00:05]} Rxc7 {[%emt 0:00:06]} 25. Bxa8 Rxc3 {[%emt 0:00:07]} 26. a4 {[%emt 0:07:08]} a5 {[%emt 0:00:23]} 27. Kf1 {[%emt 0:01:47]} Kf8 {[%emt 0:01:34]} 28. Bf3 {[%emt 0:04:09]} Ke7 {[%emt 0:02:18]} 29. Bd1 {[%emt 0:00:53]} Bb3 {[%emt 0:01:50]} 30. Bxb3 {[%emt 0:06:00]} Rxb3 {[%emt 0:00:06]} 31. Re1+ {[%emt 0:00:02]} Kd6 {[%emt 0:00:46]} 32. Rd1+ {[%emt 0:02:35]} Ke6 {[%emt 0:02:01]} 33. Re1+ {[%emt 0:00:16]} Kd6 {[%emt 0:00:15]} 34. Rd1+ {[%emt 0:00:04]} Ke6 {[%emt 0:00:06]} 35. Re1+ {[%emt 0:00:04] Ke5} 1/2-1/2

[Event "9th HDBank Open 2019"]
[Site "Ho Chi Minh City"]
[Date "2019.03.09"]
[Round "4.22"]
[White "Tokhirjonova, Gulrukhbegim"]
[Black "Tran, Minh Thang"]
[Result "1/2-1/2"]
[ECO "B41"]
[WhiteElo "2434"]
[BlackElo "2343"]
[Annotator "ChessBase"]
[PlyCount "72"]
[EventDate "2019.03.07"]
[EventType "swiss"]
[EventCountry "VIE"]
[SourceTitle "playchess.com"]
[Source "ChessBase"]
[SourceQuality "1"]
[TimeControl "5400+30"]

1. e4 c5 {[%emt 0:02:53]} 2. Nf3 {[%emt 0:04:03]} e6 {[%emt 0:00:11]} 3. d4 {[%emt 0:00:20]} cxd4 {[%emt 0:00:13]} 4. Nxd4 {[%emt 0:00:28]} a6 {[%emt 0:00:11]} 5. c4 {[%emt 0:01:26]} Nf6 {[%emt 0:00:12]} 6. Nc3 {[%emt 0:00:27]} Bb4 {[%emt 0:01:02]} 7. Qd3 {[%emt 0:03:09]} O-O {[%emt 0:03:21]} 8. e5 {[%emt 0:02:45]} Ne8 {[%emt 0:02:05]} 9. Be2 {[%emt 0:04:17]} d6 {[%emt 0:00:55]} 10. exd6 {[%emt 0:04:45]} Nxd6 {[%emt 0:05:00]} 11. O-O Nd7 {[%emt 0:17:38]} 12. Qg3 {[%emt 0:06:51]} Bc5 {[%emt 0:04:54]} 13. Bg5 {[%emt 0:06:37]} Qe8 {[%emt 0:10:33]} 14. Rad1 {[%emt 0:08:15]} Kh8 {[%emt 0:17:12]} 15. Nb3 {[%emt 0:14:51]} Nf5 {[%emt 0:00:53]} 16. Qh3 {[%emt 0:00:12]} Be7 {[%emt 0:01:40]} 17. Bf4 {[%emt 0:01:47]} Nc5 {[%emt 0:02:27]} 18. Nxc5 {[%emt 0:07:43]} Bxc5 {[%emt 0:00:12]} 19. Ne4 {[%emt 0:00:20]} e5 {[%emt 0:06:16]} 20. Nxc5 {[%emt 0:02:44]} exf4 {[%emt 0:00:22]} 21. Bg4 {[%emt 0:08:21]} Ne3 {[%emt 0:06:29]} 22. Bxc8 {[%emt 0:09:11]} Nxd1 {[%emt 0:05:10]} 23. Bf5 {[%emt 0:00:10]} g6 {[%emt 0:00:03]} 24. Nd7 {[%emt 0:00:12]} Nxf2 {[%emt 0:08:38]} 25. Qc3+ {[%emt 0:01:21]} f6 {[%emt 0:00:06]} 26. Nxf8 {[%emt 0:03:39]} Qxf8 {[%emt 0:00:24]} 27. Rxf2 {[%emt 0:00:36]} gxf5 28. Rxf4 {[%emt 0:00:13]} Qc5+ {[%emt 0:01:08]} 29. Kf1 {[%emt 0:00:58]} Rf8 {[%emt 0:00:45]} 30. Qd3 {[%emt 0:02:41]} Qe5 {[%emt 0:00:20]} 31. Rxf5 {[%emt 0:02:44]} Qxb2 {[%emt 0:01:25]} 32. Rh5 {[%emt 0:02:27]} Qc1+ {[%emt 0:02:16]} 33. Kf2 {[%emt 0:00:05]} Qf4+ {[%emt 0:00:11]} 34. Kg1 {[%emt 0:00:44]} Qc1+ {[%emt 0:00:11]} 35. Qf1 {[%emt 0:01:52]} Qxf1+ {[%emt 0:01:12]} 36. Kxf1 {[%emt 0:00:03]} Rc8 {[%emt 0:00:19]} 1/2-1/2

[Event "9th HDBank Open 2019"]
[Site "Ho Chi Minh City"]
[Date "2019.03.09"]
[Round "4.23"]
[White "Le, Huu Thai"]
[Black "Zhao, Yuanhe"]
[Result "1/2-1/2"]
[ECO "B48"]
[WhiteElo "2265"]
[BlackElo "2431"]
[Annotator "ChessBase"]
[PlyCount "100"]
[EventDate "2019.03.07"]
[EventType "swiss"]
[EventCountry "VIE"]
[SourceTitle "playchess.com"]
[Source "ChessBase"]
[SourceQuality "1"]
[TimeControl "5400+30"]

1. e4 c5 {[%emt 0:04:05]} 2. Nf3 {[%emt 0:00:37]} e6 {[%emt 0:00:09]} 3. d4 {[%emt 0:01:50]} cxd4 {[%emt 0:00:05]} 4. Nxd4 {[%emt 0:00:04]} Nc6 {[%emt 0:00:12]} 5. Nc3 {[%emt 0:01:16]} Qc7 {[%emt 0:00:05]} 6. Be3 {[%emt 0:00:58]} a6 {[%emt 0:00:15]} 7. Bd3 {[%emt 0:01:38]} b5 {[%emt 0:02:51]} 8. a3 {[%emt 0:03:35]} Bb7 {[%emt 0:00:16]} 9. O-O {[%emt 0:01:56]} Nf6 {[%emt 0:01:14]} 10. Qe2 {[%emt 0:02:14]} Be7 {[%emt 0:06:50]} 11. f4 {[%emt 0:04:47]} d6 {[%emt 0:00:28]} 12. Qf3 {[%emt 0:05:22]} O-O {[%emt 0:09:56]} 13. Qh3 Nxd4 {[%emt 0:06:42]} 14. Bxd4 {[%emt 0:02:03]} e5 {[%emt 0:00:29]} 15. Be3 {[%emt 0:12:13]} Qc8 {[%emt 0:04:24]} 16. Qf3 {[%emt 0:06:10]} Ng4 {[%emt 0:09:33]} 17. Bd2 {[%emt 0:07:39]} exf4 {[%emt 0:04:56]} 18. Qxf4 {[%emt 0:07:02]} Ne5 {[%emt 0:10:33]} 19. Ne2 {[%emt 0:09:43]} Bf6 {[%emt 0:12:57]} 20. Bc3 {[%emt 0:02:44]} Qc5+ {[%emt 0:00:47]} 21. Kh1 {[%emt 0:00:18]} Ng6 {[%emt 0:00:13]} 22. Qd2 {[%emt 0:06:21]} Bxc3 {[%emt 0:00:50]} 23. Nxc3 {[%emt 0:00:08]} Rae8 {[%emt 0:02:08]} 24. Rf5 {[%emt 0:01:56]} Re5 {[%emt 0:00:12]} 25. Raf1 {[%emt 0:00:07]} Bc6 {[%emt 0:00:58]} 26. Ne2 {[%emt 0:05:18]} Qa7 {[%emt 0:06:08]} 27. Ng3 {[%emt 0:02:07]} Qb7 {[%emt 0:01:19]} 28. Qc3 {[%emt 0:03:15]} f6 {[%emt 0:00:53]} 29. Qd4 {[%emt 0:00:31]} Ne7 {[%emt 0:02:53]} 30. R5f2 {[%emt 0:00:16]} Rd8 {[%emt 0:01:27]} 31. Kg1 {[%emt 0:00:49]} Qa8 {[%emt 0:00:34]} 32. Rf4 {[%emt 0:01:10]} d5 {[%emt 0:03:46]} 33. exd5 {[%emt 0:06:28]} Rdxd5 {[%emt 0:00:25]} 34. Qf2 {[%emt 0:00:26]} Rd6 {[%emt 0:02:19]} 35. Nf5 {[%emt 0:01:12]} Nxf5 {[%emt 0:01:01]} 36. Rxf5 {[%emt 0:00:10]} Rde6 {[%emt 0:01:15]} 37. h3 {[%emt 0:01:43]} h6 {[%emt 0:02:29]} 38. Qg3 {[%emt 0:00:33]} Rxf5 {[%emt 0:01:28]} 39. Rxf5 {[%emt 0:00:40]} Be4 {[%emt 0:00:25]} 40. Rc5 {[%emt 0:00:41]} Bxd3 {[%emt 0:01:35]} 41. cxd3 {[%emt 0:01:55]} Qa7 {[%emt 0:00:44]} 42. d4 {[%emt 0:01:02]} Qd7 {[%emt 0:00:36]} 43. Qc3 {[%emt 0:01:12]} Re4 {[%emt 0:00:31]} 44. d5 {[%emt 0:00:49]} Re5 {[%emt 0:00:27]} 45. Qc2 {[%emt 0:00:24]} f5 {[%emt 0:00:32]} 46. Qd2 {[%emt 0:00:44]} Kh7 {[%emt 0:00:29]} 47. b4 {[%emt 0:00:02]} Qd6 {[%emt 0:00:25]} 48. Rc6 {[%emt 0:00:59]} Qxd5 {[%emt 0:00:21]} 49. Qxd5 {[%emt 0:00:04]} Rxd5 {[%emt 0:00:03]} 50. Rxa6 {[%emt 0:00:16]} Rd3 {[%emt 0:00:18]} 1/2-1/2

[Event "9th HDBank Open 2019"]
[Site "Ho Chi Minh City"]
[Date "2019.03.09"]
[Round "4.24"]
[White "Nguyen, Thi Thanh An"]
[Black "Liu, Xiangyi"]
[Result "1/2-1/2"]
[ECO "D83"]
[WhiteElo "2245"]
[BlackElo "2427"]
[Annotator "ChessBase"]
[PlyCount "22"]
[EventDate "2019.03.07"]
[EventType "swiss"]
[EventCountry "VIE"]
[SourceTitle "playchess.com"]
[Source "ChessBase"]
[SourceQuality "1"]
[TimeControl "5400+30"]

1. d4 {[%emt 0:00:00]} Nf6 {[%emt 0:06:45]} 2. c4 {[%emt 0:00:00]} g6 {[%emt 0:00:08]} 3. Nc3 {[%emt 0:00:00]} d5 {[%emt 0:00:24]} 4. Bf4 {[%emt 0:00:09]} Bg7 {[%emt 0:00:07]} 5. e3 {[%emt 0:00:06]} O-O {[%emt 0:00:13]} 6. Rc1 {[%emt 0:00:06]} c6 {[%emt 0:03:14]} 7. Nf3 {[%emt 0:00:53]} Be6 {[%emt 0:09:49]} 8. Ng5 {[%emt 0:01:56]} Bc8 {[%emt 0:02:26]} 9. Nf3 {[%emt 0:00:22]} Be6 {[%emt 0:15:52]} 10. Ng5 {[%emt 0:00:19]} Bc8 {[%emt 0:04:40]} 11. Nf3 {[%emt 0:00:15]} Be6 {[%emt 0:04:16]} 1/2-1/2

[Event "9th HDBank Open 2019"]
[Site "Ho Chi Minh City"]
[Date "2019.03.09"]
[Round "4.25"]
[White "Gu, Tianlu"]
[Black "Bulmaga, Irina"]
[Result "0-1"]
[ECO "B13"]
[WhiteElo "2195"]
[BlackElo "2424"]
[Annotator "ChessBase"]
[PlyCount "72"]
[EventDate "2019.03.07"]
[EventType "swiss"]
[EventCountry "VIE"]
[SourceTitle "playchess.com"]
[Source "ChessBase"]
[SourceQuality "1"]
[TimeControl "5400+30"]

1. e4 {[%emt 0:02:50]} c6 {[%emt 0:00:00]} 2. d4 {[%emt 0:02:05]} d5 {[%emt 0:00:00]} 3. exd5 {[%emt 0:00:12]} cxd5 {[%emt 0:00:00]} 4. Bd3 {[%emt 0:00:29]} Nc6 {[%emt 0:00:00]} 5. c3 {[%emt 0:00:20]} Nf6 {[%emt 0:00:06]} 6. Na3 {[%emt 0:03:17]} a6 {[%emt 0:00:11]} 7. Bf4 {[%emt 0:02:44]} Bg4 {[%emt 0:04:08]} 8. Qd2 {[%emt 0:04:48]} e6 {[%emt 0:02:42]} 9. Nc2 {[%emt 0:00:10]} Bd6 {[%emt 0:00:40]} 10. f3 {[%emt 0:10:08]} Bh5 {[%emt 0:00:14]} 11. Ne2 {[%emt 0:00:19]} Bg6 {[%emt 0:02:21]} 12. O-O {[%emt 0:04:59]} Bxd3 {[%emt 0:07:57]} 13. Qxd3 {[%emt 0:00:05]} O-O {[%emt 0:03:29]} 14. Bxd6 {[%emt 0:04:44]} Qxd6 {[%emt 0:00:27]} 15. Qd2 {[%emt 0:04:42]} Na5 {[%emt 0:06:48]} 16. b3 {[%emt 0:00:39]} Rac8 {[%emt 0:01:18]} 17. c4 {[%emt 0:04:43]} b6 {[%emt 0:01:07]} 18. c5 {[%emt 0:02:19]} Qd8 {[%emt 0:05:39]} 19. Qd3 {[%emt 0:10:07]} bxc5 {[%emt 0:07:01]} 20. dxc5 {[%emt 0:00:53]} Qe7 {[%emt 0:06:41]} 21. b4 {[%emt 0:00:48]} Nc6 {[%emt 0:05:31]} 22. Kh1 {[%emt 0:01:13]} a5 {[%emt 0:06:13]} 23. a3 {[%emt 0:01:59]} e5 {[%emt 0:00:02]} 24. Nc3 {[%emt 0:08:42]} e4 {[%emt 0:03:05]} 25. fxe4 {[%emt 0:00:30]} dxe4 {[%emt 0:00:18]} 26. Qe3 {[%emt 0:05:04]} Qe5 {[%emt 0:03:59]} 27. Rf4 {[%emt 0:10:47]} Rcd8 {[%emt 0:07:03]} 28. Re1 {[%emt 0:01:57]} axb4 {[%emt 0:06:17]} 29. axb4 {[%emt 0:01:26]} Rfe8 {[%emt 0:12:07]} 30. Rxf6 {[%emt 0:04:20]} Qxf6 {[%emt 0:04:19]} 31. Nxe4 {[%emt 0:00:55]} Qb2 {[%emt 0:00:30]} 32. Re2 {[%emt 0:07:11]} Nxb4 {[%emt 0:02:47]} 33. Nxb4 {[%emt 0:00:20]} Rd1+ {[%emt 0:01:51]} 34. Re1 {[%emt 0:00:23]} Rxe1+ {[%emt 0:00:02]} 35. Qxe1 {[%emt 0:00:05]} Rxe4 {[%emt 0:00:06]} 36. Qd1 {[%emt 0:00:58]} Qd4 {[%emt 0:00:44]} 0-1

[Event "9th HDBank Open 2019"]
[Site "Ho Chi Minh City"]
[Date "2019.03.09"]
[Round "4.26"]
[White "Tu, Hoang Thong"]
[Black "Pranesh, M."]
[Result "1-0"]
[ECO "C00"]
[WhiteElo "2416"]
[BlackElo "2309"]
[Annotator "ChessBase"]
[PlyCount "97"]
[EventDate "2019.03.07"]
[EventType "swiss"]
[EventCountry "VIE"]
[SourceTitle "playchess.com"]
[Source "ChessBase"]
[SourceQuality "1"]
[TimeControl "5400+30"]

1. e4 {[%emt 0:00:00]} e6 {[%emt 0:01:10]} 2. Nf3 {[%emt 0:00:19]} d5 {[%emt 0:00:30]} 3. e5 {[%emt 0:00:30]} c5 {[%emt 0:00:30]} 4. c3 {[%emt 0:00:30]} Nc6 {[%emt 0:00:30]} 5. Na3 {[%emt 0:00:30]} Nb8 {[%emt 0:00:00]} 6. Nb1 Nc6 {[%emt 0:00:00]} 7. Na3 {[%emt 0:12:52]} d4 {[%emt 0:00:00]} 8. Bd3 {[%emt 0:02:30]} Nge7 {[%emt 0:00:47]} 9. Be4 {[%emt 0:01:02]} Ng6 {[%emt 0:02:31]} 10. Bxc6+ {[%emt 0:00:44]} bxc6 {[%emt 0:00:06]} 11. Qa4 {[%emt 0:00:23]} Qd5 {[%emt 0:03:50]} 12. O-O {[%emt 0:00:17]} Bb7 {[%emt 0:11:27]} 13. Nc4 {[%emt 0:07:10]} Nf4 {[%emt 0:02:47]} 14. d3 {[%emt 0:04:16]} Nxd3 {[%emt 0:10:14]} 15. Rd1 {[%emt 0:05:47]} Nxc1 16. Raxc1 {[%emt 0:00:04]} d3 {[%emt 0:01:15]} 17. Ne1 Qd8 {[%emt 0:04:15]} 18. Nxd3 {[%emt 0:12:17]} Qc7 {[%emt 0:01:11]} 19. Qa3 {[%emt 0:00:16]} Be7 {[%emt 0:03:28]} 20. Nd6+ {[%emt 0:06:02]} Bxd6 {[%emt 0:01:31]} 21. exd6 {[%emt 0:00:33]} Qxd6 {[%emt 0:00:07]} 22. Nxc5 {[%emt 0:00:15]} Qe7 {[%emt 0:04:15]} 23. Rd7 {[%emt 0:00:25]} Qg5 {[%emt 0:00:39]} 24. Rcd1 {[%emt 0:00:13]} O-O {[%emt 0:01:05]} 25. Nxb7 {[%emt 0:00:29]} h5 {[%emt 0:00:26]} 26. Qc5 {[%emt 0:00:41]} Qg4 {[%emt 0:00:21]} 27. h3 {[%emt 0:00:14]} Qg6 {[%emt 0:00:07]} 28. Qxc6 {[%emt 0:00:12]} Rac8 {[%emt 0:00:03]} 29. Qf3 {[%emt 0:00:11]} Rc4 {[%emt 0:00:07]} 30. Qd3 {[%emt 0:00:53]} Re4 {[%emt 0:00:31]} 31. Nc5 {[%emt 0:00:16]} Re5 {[%emt 0:00:04]} 32. Qxg6 {[%emt 0:00:24]} fxg6 {[%emt 0:00:04]} 33. b4 {[%emt 0:00:49]} Re2 {[%emt 0:00:06]} 34. Rd8 {[%emt 0:00:13]} Re1+ {[%emt 0:00:16]} 35. Rxe1 {[%emt 0:00:08]} Rxd8 {[%emt 0:00:04]} 36. Rxe6 {[%emt 0:00:08]} Rd2 {[%emt 0:00:03]} 37. Ra6 {[%emt 0:00:21]} Rc2 {[%emt 0:00:03]} 38. Ne4 {[%emt 0:00:09]} Re2 {[%emt 0:00:03]} 39. f3 {[%emt 0:00:09]} Kh7 {[%emt 0:00:30]} 40. h4 {[%emt 0:00:30]} Rxe4 {[%emt 0:00:30]} 41. fxe4 {[%emt 0:00:30]} g5 {[%emt 0:00:00]} 42. hxg5 {[%emt 0:00:00]} h4 {[%emt 0:00:00]} 43. b5 {[%emt 0:00:00]} h3 {[%emt 0:00:00]} 44. gxh3 {[%emt 0:00:00]} g6 {[%emt 0:00:00]} 45. Rxa7+ {[%emt 0:00:00]} Kg8 {[%emt 0:00:00]} 46. Rc7 {[%emt 0:00:04]} Kf8 {[%emt 0:00:00]} 47. b6 {[%emt 0:00:09]} Ke8 {[%emt 0:00:42]} 48. b7 {[%emt 0:00:09]} Kd8 {[%emt 0:01:12]} 49. b8=Q# {[%emt 0:00:16]} 1-0

[Event "9th HDBank Open 2019"]
[Site "Ho Chi Minh City"]
[Date "2019.03.09"]
[Round "4.27"]
[White "Nandhidhaa, P V"]
[Black "Le, Quang Long"]
[Result "1/2-1/2"]
[ECO "B13"]
[WhiteElo "2240"]
[BlackElo "2412"]
[Annotator "ChessBase"]
[PlyCount "134"]
[EventDate "2019.03.07"]
[EventType "swiss"]
[EventCountry "VIE"]
[SourceTitle "playchess.com"]
[Source "ChessBase"]
[SourceQuality "1"]
[TimeControl "5400+30"]

1. e4 {[%emt 0:04:43]} c6 {[%emt 0:00:00]} 2. d4 {[%emt 0:00:04]} d5 {[%emt 0:00:00]} 3. exd5 {[%emt 0:00:04]} cxd5 {[%emt 0:00:00]} 4. Bd3 {[%emt 0:00:03]} Nc6 {[%emt 0:00:00]} 5. c3 {[%emt 0:00:15]} Nf6 {[%emt 0:00:13]} 6. h3 {[%emt 0:00:06]} g6 {[%emt 0:00:20]} 7. Nf3 {[%emt 0:00:22]} Bf5 {[%emt 0:00:14]} 8. Be2 {[%emt 0:00:05]} Qc7 {[%emt 0:04:00]} 9. O-O {[%emt 0:00:30]} Bg7 {[%emt 0:00:15]} 10. Re1 {[%emt 0:00:36]} O-O {[%emt 0:00:38]} 11. Be3 {[%emt 0:00:54]} a6 {[%emt 0:07:32]} 12. Qc1 {[%emt 0:08:55]} Rfc8 {[%emt 0:02:15]} 13. Bf4 {[%emt 0:03:50]} Qd8 {[%emt 0:01:10]} 14. Qe3 {[%emt 0:07:17]} b5 {[%emt 0:03:18]} 15. Ne5 {[%emt 0:01:32]} Nd7 16. Nxc6 {[%emt 0:07:21]} Rxc6 {[%emt 0:04:12]} 17. Nd2 {[%emt 0:08:17]} Nb6 {[%emt 0:15:47]} 18. Nb3 {[%emt 0:03:05]} Na4 {[%emt 0:02:16]} 19. g4 {[%emt 0:05:05]} Be6 {[%emt 0:05:36]} 20. Rab1 {[%emt 0:00:47]} Qb6 {[%emt 0:01:30]} 21. a3 {[%emt 0:05:42]} Rac8 {[%emt 0:04:21]} 22. Be5 {[%emt 0:02:53]} f6 {[%emt 0:00:56]} 23. Bg3 {[%emt 0:00:52]} Re8 {[%emt 0:04:55]} 24. Bf3 {[%emt 0:08:50]} Bf7 {[%emt 0:01:19]} 25. Qd2 {[%emt 0:05:59]} Qd8 {[%emt 0:04:26]} 26. Rbd1 {[%emt 0:00:40]} e5 {[%emt 0:03:20]} 27. dxe5 {[%emt 0:03:57]} fxe5 {[%emt 0:01:44]} 28. Nc1 {[%emt 0:01:59]} Nb6 {[%emt 0:03:27]} 29. Nd3 {[%emt 0:01:09]} e4 {[%emt 0:07:35]} 30. Nb4 {[%emt 0:00:35]} Rc8 {[%emt 0:00:24]} 31. Bg2 {[%emt 0:09:02]} a5 {[%emt 0:06:08]} 32. Nc2 {[%emt 0:00:04]} Nc4 {[%emt 0:00:20]} 33. Qc1 {[%emt 0:00:02]} Qf6 {[%emt 0:01:01]} 34. Re2 {[%emt 0:03:12]} Ne5 {[%emt 0:02:25]} 35. Bxe5 {[%emt 0:02:30]} Qxe5 {[%emt 0:00:56]} 36. Qe3 {[%emt 0:00:39]} h5 {[%emt 0:03:41]} 37. gxh5 {[%emt 0:00:39]} Qxh5 {[%emt 0:00:07]} 38. Nd4 {[%emt 0:01:04]} b4 {[%emt 0:02:44]} 39. axb4 {[%emt 0:00:05]} axb4 {[%emt 0:00:06]} 40. Ra1 {[%emt 0:00:59]} bxc3 {[%emt 0:00:32]} 41. bxc3 {[%emt 0:00:03]} Re5 {[%emt 0:02:43]} 42. Rea2 {[%emt 0:00:51]} Bh6 {[%emt 0:02:47]} 43. Qg3 {[%emt 0:01:44]} Rg5 {[%emt 0:01:09]} 44. Ra8 {[%emt 0:00:13]} Rf8 {[%emt 0:03:26]} 45. Rxf8+ {[%emt 0:01:05]} Bxf8 {[%emt 0:00:07]} 46. Qf4 {[%emt 0:00:41]} Qh6 {[%emt 0:01:44]} 47. Kf1 {[%emt 0:00:47]} Rh5 {[%emt 0:00:19]} 48. Qxh6 {[%emt 0:01:06]} Bxh6 {[%emt 0:00:17]} 49. Ra8+ {[%emt 0:00:30]} Kg7 {[%emt 0:00:06]} 50. Ra7 {[%emt 0:00:50]} Bd2 {[%emt 0:00:29]} 51. c4 {[%emt 0:00:33]} dxc4 {[%emt 0:00:59]} 52. Bxe4 {[%emt 0:00:03]} Kf6 {[%emt 0:00:20]} 53. Nf3 {[%emt 0:00:32]} Bf4 {[%emt 0:00:39]} 54. Ra6+ {[%emt 0:00:22]} Kg7 {[%emt 0:00:14]} 55. h4 {[%emt 0:01:02]} Rc5 {[%emt 0:00:21]} 56. Rc6 {[%emt 0:00:40]} Rxc6 {[%emt 0:00:47]} 57. Bxc6 {[%emt 0:00:01]} c3 {[%emt 0:00:53]} 58. Nd4 {[%emt 0:00:48]} Bc4+ {[%emt 0:00:40]} 59. Ke1 {[%emt 0:00:26]} Be5 {[%emt 0:00:52]} 60. Nf3 {[%emt 0:01:10]} Bf6 {[%emt 0:00:32]} 61. Be4 {[%emt 0:00:21]} Bb3 {[%emt 0:00:27]} 62. Ke2 {[%emt 0:00:09]} Kh6 {[%emt 0:00:47]} 63. Kd3 {[%emt 0:00:39]} Kh5 {[%emt 0:00:18]} 64. Ne1 {[%emt 0:00:31]} Bf7 {[%emt 0:00:18]} 65. Nf3 {[%emt 0:00:56]} Kg4 {[%emt 0:00:32]} 66. Nd4 {[%emt 0:00:21]} Bxh4 {[%emt 0:00:49]} 67. f3+ {[%emt 0:00:18]} Kg3 1/2-1/2

[Event "9th HDBank Open 2019"]
[Site "Ho Chi Minh City"]
[Date "2019.03.09"]
[Round "4.28"]
[White "Tong, Thai Hung"]
[Black "Nitin, S.."]
[Result "0-1"]
[ECO "B54"]
[WhiteElo "2185"]
[BlackElo "2408"]
[Annotator "ChessBase"]
[PlyCount "79"]
[EventDate "2019.03.07"]
[EventType "swiss"]
[EventCountry "VIE"]
[SourceTitle "playchess.com"]
[Source "ChessBase"]
[SourceQuality "1"]
[TimeControl "5400+30"]

1. e4 {[%emt 0:00:00]} c5 {[%emt 0:00:08]} 2. Nf3 {[%emt 0:00:00]} d6 {[%emt 0:00:12]} 3. d4 {[%emt 0:00:00]} cxd4 {[%emt 0:00:07]} 4. Nxd4 {[%emt 0:00:06]} Nf6 {[%emt 0:00:05]} 5. f3 {[%emt 0:00:08]} e5 {[%emt 0:02:19]} 6. Nb3 {[%emt 0:00:24]} Be6 {[%emt 0:03:05]} 7. c4 {[%emt 0:00:22]} a5 {[%emt 0:04:17]} 8. Be3 {[%emt 0:00:14]} a4 {[%emt 0:01:33]} 9. N3d2 {[%emt 0:00:05]} Qa5 {[%emt 0:01:18]} 10. Nc3 {[%emt 0:00:16]} Nbd7 {[%emt 0:01:41]} 11. Rc1 {[%emt 0:02:06]} Be7 {[%emt 0:01:06]} 12. Bd3 {[%emt 0:03:39]} O-O {[%emt 0:03:19]} 13. O-O {[%emt 0:00:07]} Bd8 {[%emt 0:04:48]} 14. Rf2 {[%emt 0:03:44]} Bb6 {[%emt 0:03:31]} 15. Nf1 {[%emt 0:00:04]} Rfc8 {[%emt 0:07:54]} 16. Nb5 {[%emt 0:05:03]} Rc6 {[%emt 0:01:04]} 17. Rfc2 Bxe3+ {[%emt 0:10:45]} 18. Nxe3 {[%emt 0:01:29]} Qb6 {[%emt 0:00:07]} 19. Qd2 {[%emt 0:02:11]} Nc5 {[%emt 0:05:51]} 20. Na3 {[%emt 0:07:39]} Na6 {[%emt 0:01:25]} 21. c5 {[%emt 0:08:18]} Nxc5 {[%emt 0:01:28]} 22. Bb5 {[%emt 0:02:29]} Rc7 {[%emt 0:03:33]} 23. Bc4 {[%emt 0:00:30]} Rac8 {[%emt 0:05:30]} 24. Kh1 {[%emt 0:01:42]} h6 {[%emt 0:06:02]} 25. Bxe6 {[%emt 0:12:02]} Nxe6 {[%emt 0:00:24]} 26. Rxc7 {[%emt 0:00:03]} Rxc7 {[%emt 0:00:09]} 27. Rxc7 {[%emt 0:00:15]} Qxc7 {[%emt 0:02:09]} 28. Nb5 {[%emt 0:01:03]} Qc5 {[%emt 0:05:39]} 29. Nxd6 {[%emt 0:01:42]} b5 {[%emt 0:00:17]} 30. a3 {[%emt 0:04:32]} g6 {[%emt 0:01:28]} 31. h3 {[%emt 0:11:21]} Nd4 {[%emt 0:02:06]} 32. Nb7 {[%emt 0:00:27]} Qa7 {[%emt 0:01:36]} 33. Na5 {[%emt 0:01:28]} Nh5 {[%emt 0:00:35]} 34. Kh2 {[%emt 0:01:19]} Nf4 {[%emt 0:06:34]} 35. Ng4 {[%emt 0:23:08]} Nde2 {[%emt 0:02:31]} 36. Ne3 {[%emt 0:03:07]} Qc7 {[%emt 0:01:48]} 37. Nd5 {[%emt 0:02:31]} Qc5 {[%emt 0:01:34]} 38. Qe3 {[%emt 0:00:31]} Qc2 {[%emt 0:02:16]} 39. Nc6 {[%emt 0:04:06]} Ng3 {[%emt 0:05:29]} 40. Nf6+ {[%emt 0:01:49]} 0-1